fUST/lending_fUST_20240416
["ID","MTS","AMOUNT","RATE_DAILY","PERIOD"]
[322757598,1713251443131,-500.0,0.00034246,7]
[322757600,1713251443142,-500.0,0.00034246,7]
[322757602,1713251443153,-500.0,0.00034246,7]
[322757604,1713251443164,-500.0,0.00034246,7]
[322757607,1713251443176,-500.0,0.00034246,7]
[322757609,1713251443187,-500.0,0.00034246,7]
[322757611,1713251443197,-500.0,0.00034246,7]
[322757613,1713251443208,-376.26289436,0.00034246,7]
[322757615,1713251443218,-504.43416724,0.00034246,7]
[322757618,1713251443232,-326.69,0.00034246,7]
[322757620,1713251443243,-500.0,0.00034246,7]
[322757622,1713251443253,-500.0,0.00034246,7]
[322757624,1713251443264,-500.0,0.00034246,7]
[322757626,1713251443276,-500.0,0.00034246,7]
[322757629,1713251443286,-500.0,0.00034246,7]
[322757631,1713251443297,-500.0,0.00034246,7]
[322757633,1713251443308,-500.0,0.00034246,7]
[322757635,1713251443317,-500.0,0.00034246,7]
[322757636,1713251443328,-500.0,0.00034246,7]
[322757637,1713251443338,-207.73459644,0.00034246,7]
[322757638,1713251443356,-292.26540356,0.00034246,7]
[322757642,1713251443367,-500.0,0.00034246,7]
[322757645,1713251443378,-500.0,0.00034246,7]
[322757647,1713251443389,-500.0,0.00034246,7]
[322757648,1713251443400,-500.0,0.00034246,7]
[322757650,1713251443412,-500.0,0.00034246,7]
[322757652,1713251443423,-500.0,0.00034246,7]
[322757653,1713251443435,-500.0,0.00034246,7]
[322757654,1713251443447,-500.0,0.00034246,7]
[322757655,1713251443458,-500.0,0.00034246,7]
[322757656,1713251443468,-500.0,0.00034246,7]
[322757657,1713251443478,-569.26726834,0.00034246,7]
[322757658,1713251443487,-500.0,0.00034246,7]
[322757659,1713251443497,-503.55190382,0.00034246,7]
[322757661,1713251443507,-500.0,0.00034246,7]
[322757662,1713251443518,-500.0,0.00034246,7]
[322757663,1713251443529,-155.02851053,0.00034246,7]
[322757664,1713251443540,-500.0,0.00034246,7]
[322757665,1713251443550,-500.0,0.00034246,2]
[322757666,1713251443560,-502.17265242,0.00034246,7]
[322757667,1713251443571,-500.0,0.00034246,7]
[322757668,1713251443582,-500.0,0.00034246,2]
[322757669,1713251443593,-500.0,0.00034246,7]
[322757670,1713251443606,-500.0,0.00034246,2]
[322757671,1713251443616,-500.0,0.00034246,7]
[322757672,1713251443626,-500.0,0.00034246,2]
[322757673,1713251443637,-500.0,0.00034246,7]
[322757674,1713251443647,-500.0,0.00034246,2]
[322757675,1713251443657,-500.0,0.00034246,7]
[322757676,1713251443668,-508.982,0.00034246,2]
[322757677,1713251443678,-500.0,0.00034246,7]
[322757678,1713251443689,-500.0,0.00034246,7]
[322757679,1713251443699,-500.0,0.00034246,7]
[322757680,1713251443710,-500.0,0.00034246,7]
[322757681,1713251443720,-659.99,0.00034246,7]
[322757682,1713251443729,-248.8,0.00034246,7]
[322757683,1713251443739,-335.87447901,0.00034246,7]
[322757684,1713251443787,-7932.47,0.00034245,2]
[322757685,1713251443798,-1052.80810976,0.00034245,2]
[322757686,1713251443810,-3902.08066927,0.00034245,2]
[322757687,1713251443823,-2977.58122097,0.00034245,2]
[322757688,1713251443835,-324.11552099,0.00034246,7]
[322757689,1713251443846,-659.99,0.00034246,7]
[322757690,1713251443856,-659.99,0.00034246,7]
[322757691,1713251443866,-500.0,0.00034246,7]
[322757692,1713251443876,-500.0,0.00034246,7]
[322757693,1713251443886,-659.99,0.00034246,7]
[322757694,1713251443897,-500.0,0.00034246,7]
[322757695,1713251443909,-659.99,0.00034246,7]
[322757696,1713251443919,-500.0,0.00034246,7]
[322757697,1713251443930,-659.99,0.00034246,7]
[322757698,1713251443939,-504.65096793,0.00034246,7]
[322757699,1713251443951,-659.99,0.00034246,7]
[322757700,1713251443961,-659.99,0.00034246,7]
[322757701,1713251443971,-659.99,0.00034246,7]
[322757702,1713251443982,-659.99,0.00034246,7]
[322757703,1713251443992,-503.17849969,0.00034246,7]
[322757704,1713251444002,-659.99,0.00034246,7]
[322757705,1713251444012,-659.99,0.00034246,7]
[322757706,1713251444022,-659.99,0.00034246,7]
[322757707,1713251444032,-659.99,0.00034246,7]
[322757708,1713251444043,-659.99,0.00034246,7]
[322757709,1713251444053,-659.99,0.00034246,7]
[322757710,1713251444063,-501.09759957,0.00034246,7]
[322757711,1713251444074,-659.99,0.00034246,7]
[322757712,1713251444084,-659.99,0.00034246,7]
[322757713,1713251444094,-659.99,0.00034246,7]
[322757714,1713251444105,-500.0,0.00034246,7]
[322757715,1713251444114,-500.0,0.00034246,7]
[322757716,1713251444124,-659.99,0.00034246,7]
[322757717,1713251444133,-531.75572581,0.00034246,7]
[322757718,1713251444143,-500.0,0.00034246,7]
[322757719,1713251444153,-659.99,0.00034246,7]
[322757720,1713251444162,-500.0,0.00034246,7]
[322757721,1713251444171,-659.99,0.00034246,7]
[322757722,1713251444181,-500.0,0.00034246,7]
[322757723,1713251444190,-660.04036633,0.00034246,7]
[322757724,1713251444199,-502.22281556,0.00034246,7]
[322757725,1713251444213,-166.35,0.00034246,7]
[322757726,1713251444358,-160.483171,0.00034247,2]
[322757727,1713251444375,-3000.0,0.0003425,2]
[322757728,1713251444385,-3000.0,0.0003426,2]
[322757729,1713251444395,-3000.0,0.0003427,2]
[322757730,1713251444405,-3000.0,0.0003428,2]
[322757731,1713251444416,-3000.0,0.0003429,2]
[322757732,1713251444426,-3000.0,0.000343,2]
[322757733,1713251444436,-3000.0,0.0003431,2]
[322757734,1713251444445,-500.0,0.00034319,7]
[322757735,1713251444462,-500.0,0.00034319,7]
[322757736,1713251444472,-511.74,0.00034319,7]
[322757737,1713251444481,-3000.0,0.0003432,2]
[322757738,1713251444492,-500.0,0.00034329,7]
[322757739,1713251444501,-500.0,0.00034329,7]
[322757740,1713251444511,-5850.0,0.0003433,2]
[322757741,1713251444520,-153.0,0.00034356,2]
[322757742,1713251444530,-153.0,0.00034356,2]
[322757743,1713251444539,-153.0,0.00034356,2]
[322757744,1713251444548,-153.0,0.00034356,2]
[322757745,1713251444558,-153.0,0.00034356,2]
[322757746,1713251444567,-153.0,0.00034356,2]
[322757747,1713251444576,-153.0,0.00034356,2]
[322757748,1713251444588,-153.0,0.00034356,2]
[322757749,1713251444599,-153.0,0.00034356,2]
[322757750,1713251444608,-154.9400408,0.00034356,2]
[322757751,1713251444617,-153.0,0.00034356,2]
[322757752,1713251444626,-153.0,0.00034356,2]
[322757753,1713251444636,-153.0,0.00034356,2]
[322757754,1713251444646,-153.0,0.00034356,2]
[322757755,1713251444655,-153.0,0.00034356,2]
[322757756,1713251444665,-153.0,0.00034356,2]
[322757757,1713251444675,-1003.645608,0.000345,17]
[322757758,1713251444684,-167.98399902,0.00034648,3]
[322757759,1713251444694,-417.03,0.00034662,2]
[322757760,1713251444708,-205.0,0.0003471,9]
[322757761,1713251444718,-155.56620625,0.00034898,4]
[322757762,1713251444727,-500.0,0.00034898,7]
[322757763,1713251444736,-500.0,0.00034898,7]
[322757764,1713251444746,-500.0,0.00034899,7]
[322757765,1713251444755,-500.0,0.00034899,7]
[322757766,1713251444765,-342.89973256,0.00034899,7]
[322757767,1713251444776,-500.0,0.00034899,7]
[322757768,1713251444785,-503.24212008,0.00034899,7]
[322757769,1713251444793,-503.47668821,0.00034899,7]
[322757770,1713251444802,-500.0,0.00034899,7]
[322757771,1713251444812,-500.0,0.00034899,7]
[322757772,1713251444821,-500.0,0.00034899,7]
[322757773,1713251444830,-504.15520663,0.00034899,7]
[322757774,1713251444839,-500.0,0.00034899,7]
[322757775,1713251444848,-500.0,0.00034899,7]
[322757776,1713251444857,-501.37108711,0.00034899,7]
[322757777,1713251444866,-500.0,0.00034899,7]
[322757778,1713251444875,-500.0,0.00034899,7]
[322757779,1713251444884,-500.0,0.00034899,7]
[322757780,1713251444893,-500.0,0.00034899,7]
[322757781,1713251444903,-500.0,0.00034899,7]
[322757782,1713251444912,-504.06650394,0.00034899,7]
[322757783,1713251444922,-501.5192508,0.00034899,7]
[322757784,1713251444931,-502.04599129,0.00034899,7]
[322757785,1713251444941,-518.9022578,0.00034899,7]
[322757786,1713251444950,-160.0,0.00034899,10]
[322757787,1713251444963,-160.0,0.00034899,10]
[322757788,1713251444972,-274.69331001,0.00034899,7]
[322757789,1713251444981,-500.0,0.00034899,7]
[322757790,1713251444991,-500.0,0.00034899,7]
[322757791,1713251445000,-500.0,0.00034899,7]
[322757792,1713251445009,-206.97421276,0.00034899,7]
[322757793,1713251445018,-500.0,0.00034899,7]
[322757794,1713251445028,-270.35202835,0.00034899,7]
[322757795,1713251445038,-511.74,0.00034899,7]
[322757796,1713251445047,-511.74,0.00034899,7]
[322757797,1713251445057,-511.74,0.00034899,7]
[322757798,1713251445066,-511.74,0.00034899,7]
[322757799,1713251445075,-511.74,0.00034899,7]
[322757800,1713251445084,-511.74,0.00034899,7]
[322757801,1713251445093,-511.74,0.00034899,7]
[322757802,1713251445103,-511.91,0.00034899,7]
[322757803,1713251445112,-500.0,0.00034899,7]
[322757804,1713251445120,-449.32358481,0.00034899,7]
[322757805,1713251445129,-7932.47,0.00034899,2]
[322757806,1713251445138,-7932.47,0.00034899,2]
[322757807,1713251445147,-1719.68197565,0.000349,30]
[322757808,1713251445156,-29265.5113453,0.000349,2]
[322757915,1713252282872,-150.0,0.00026998,2]
[322757918,1713252437125,-5793.01191531,0.00026995,2]
[322757919,1713252437147,-300.0,0.00026995,2]
[322757920,1713252437169,-8000.0,0.00026996,2]
[322757921,1713252437191,-72000.1852567,0.00026996,2]
[322757922,1713252437212,-155.71731755,0.00026997,2]
[322757923,1713252437236,-1497.68423545,0.00026997,2]
[322757924,1713252437257,-10205.94886051,0.00026997,2]
[322757925,1713252437278,-154.75239617,0.00026998,2]
[322757926,1713252437299,-154.75239617,0.00026999,2]
[322757927,1713252437320,-130000.0,0.00027,30]
[322757928,1713252437341,-206.93286,0.00027397,2]
[322757929,1713252437362,-237.02444853,0.00028999,2]
[322757930,1713252437383,-5000.0,0.00029,2]
[322757931,1713252437403,-100000.0,0.00029,30]
[322757932,1713252437424,-420.0,0.00029695,2]
[322757933,1713252437445,-167.124496,0.00030305,2]
[322757934,1713252437465,-231.6432979,0.00030817,2]
[322757935,1713252437487,-10629.16568609,0.00031,5]
[322757936,1713252437508,-167.124496,0.00031682,2]
[322757937,1713252437529,-333.05249061,0.00031773,5]
[322757938,1713252437550,-154.75239617,0.0003189,10]
[322757939,1713252437571,-873.50816198,0.00031899,2]
[322757940,1713252437593,-3000.0,0.00032,4]
[322757941,1713252437613,-191.14907978,0.00032,4]
[322757942,1713252437635,-587.0,0.00032664,2]
[322757943,1713252437656,-167.124496,0.00033059,2]
[322757944,1713252437678,-153.0,0.0003326,2]
[322757945,1713252437700,-276.50248731,0.00033326,4]
[322757946,1713252437722,-3000.0,0.00033332,7]
[322757947,1713252437745,-810.58,0.00033332,7]
[322757948,1713252437766,-155.16174341,0.00033998,2]
[322757949,1713252437786,-687.52854567,0.00033998,4]
[322757950,1713252437809,-155.50846305,0.00033999,4]
[322757951,1713252437831,-231.97621698,0.00033999,4]
[322757952,1713252437853,-522.7869509,0.00034,2]
[322757953,1713252437874,-1192.99413052,0.00034,30]
[322757954,1713252437896,-465.51859638,0.00034,4]
[322757955,1713252437917,-500.0,0.00034,120]
[322757956,1713252437938,-500.0,0.00034,120]
[322757957,1713252437960,-500.0,0.00034,120]
[322757958,1713252437984,-500.0,0.00034,120]
[322757959,1713252438007,-500.0,0.00034,120]
[322757960,1713252438028,-500.0,0.00034,120]
[322757961,1713252438050,-500.0,0.00034,120]
[322757962,1713252438072,-500.0,0.00034,120]
[322757963,1713252438093,-500.0,0.00034,120]
[322757964,1713252438116,-500.0,0.00034,120]
[322757965,1713252438141,-500.0,0.00034,120]
[322757966,1713252438169,-500.0,0.00034,120]
[322757967,1713252438196,-500.0,0.00034,120]
[322757968,1713252438219,-500.0,0.00034,120]
[322757969,1713252438244,-500.0,0.00034,120]
[322757970,1713252438268,-2236.34494989,0.00034146,2]
[322757971,1713252438294,-150.0,0.000342,2]
[322757972,1713252438322,-793.24,0.00034245,2]
[322757973,1713252438347,-793.24,0.00034245,2]
[322757974,1713252438370,-793.24,0.00034245,2]
[322757975,1713252438393,-793.24,0.00034245,2]
[322757976,1713252438417,-793.24,0.00034245,2]
[322757977,1713252438440,-793.24,0.00034245,2]
[322757978,1713252438463,-793.24,0.00034245,2]
[322757979,1713252438488,-793.24,0.00034245,2]
[322757980,1713252438511,-793.24,0.00034245,2]
[322757981,1713252438533,-793.24,0.00034245,2]
[322757982,1713252438562,-15571.05312579,0.00034246,5]
[322757983,1713252438587,-500.0,0.00034246,7]
[322757984,1713252438611,-500.0,0.00034246,7]
[322757985,1713252438634,-500.0,0.00034246,7]
[322757986,1713252438658,-150.68989415,0.00034246,7]
[322757987,1713252438683,-500.0,0.00034246,7]
[322757988,1713252438709,-500.0,0.00034246,7]
[322757989,1713252438734,-500.0,0.00034246,7]
[322757990,1713252438758,-535.62780696,0.00034246,7]
[322757991,1713252438778,-500.0,0.00034246,7]
[322757992,1713252438800,-346.81448276,0.00034246,7]
[322758022,1713252632137,-160.851412,0.00027397,2]
[322758024,1713252632147,-167.124496,0.00027397,2]
[322758026,1713252632157,-154.75239617,0.00031997,10]
[322758028,1713252632167,-351.64540881,0.00031997,4]
[322758109,1713252638159,-5000.0,0.00031996,4]
[322758110,1713252638169,-7648.35459119,0.00031997,4]
[322758111,1713252638178,-60000.15438058,0.00031997,4]
[322758112,1713252638188,-400.0,0.00031998,2]
[322758113,1713252638197,-3000.0,0.00032,4]
[322758114,1713252638206,-2000.0,0.000339,2]
[322758115,1713252638215,-191.14907978,0.00033995,4]
[322758116,1713252638225,-154.96885471,0.00033998,4]
[322758117,1713252638234,-155.51713745,0.00033999,4]
[322758118,1713252638245,-677.25235365,0.00033999,4]
[322758119,1713252638255,-500.0,0.00034,120]
[322758120,1713252638265,-500.0,0.00034,120]
[322758122,1713252638277,-500.0,0.00034,120]
[322758123,1713252638286,-500.0,0.00034,120]
[322758125,1713252638296,-500.0,0.00034,120]
[322758126,1713252638306,-500.0,0.00034,120]
[322758127,1713252638315,-500.0,0.00034,120]
[322758128,1713252638324,-500.0,0.00034,120]
[322758129,1713252638334,-500.0,0.00034,120]
[322758130,1713252638344,-348.64,0.00034,120]
[322758131,1713252638353,-500.0,0.00034,120]
[322758132,1713252638363,-500.0,0.00034,120]
[322758133,1713252638373,-500.0,0.00034,120]
[322758134,1713252638382,-500.0,0.00034,120]
[322758135,1713252638396,-500.0,0.00034,120]
[322758136,1713252638405,-500.0,0.00034,120]
[322758137,1713252638414,-500.0,0.00034,120]
[322758138,1713252638423,-500.0,0.00034,120]
[322758139,1713252638432,-500.0,0.00034,120]
[322758140,1713252638441,-500.0,0.00034,120]
[322758141,1713252638451,-500.0,0.00034,120]
[322758142,1713252638460,-500.0,0.00034,120]
[322758143,1713252638469,-500.0,0.00034,120]
[322758144,1713252638478,-500.0,0.00034,120]
[322758145,1713252638487,-500.0,0.00034,120]
[322758146,1713252638497,-500.0,0.00034,120]
[322758147,1713252638506,-383.0,0.00034,120]
[322758148,1713252638515,-500.0,0.00034,120]
[322758149,1713252638524,-500.0,0.00034,120]
[322758150,1713252638533,-465.51859638,0.00034,4]
[322758151,1713252638542,-500.0,0.00034,120]
[322758152,1713252638553,-500.0,0.00034,120]
[322758153,1713252638563,-500.0,0.00034,120]
[322758154,1713252638572,-506.39,0.00034,120]
[322758155,1713252638581,-500.0,0.00034,120]
[322758156,1713252638590,-500.0,0.00034,120]
[322758157,1713252638599,-10629.16568609,0.0003421,5]
[322758158,1713252638609,-7785.52656289,0.00034246,5]
[322758159,1713252638618,-514.2922967,0.00034246,7]
[322758160,1713252638627,-500.0,0.00034246,7]
[322758161,1713252638639,-500.0,0.00034246,7]
[322758162,1713252638648,-500.0,0.00034246,7]
[322758163,1713252638657,-500.0,0.00034246,7]
[322758164,1713252638666,-500.0,0.00034246,7]
[322758165,1713252638675,-500.0,0.00034246,7]
[322758166,1713252638684,-500.0,0.00034246,7]
[322758167,1713252638694,-500.0,0.00034246,7]
[322758168,1713252638702,-500.0,0.00034246,7]
[322758169,1713252638711,-500.0,0.00034246,7]
[322758170,1713252638721,-500.0,0.00034246,7]
[322758171,1713252638730,-500.0,0.00034246,7]
[322758172,1713252638739,-500.0,0.00034246,7]
[322758173,1713252638748,-500.0,0.00034246,7]
[322758174,1713252638757,-537.32629745,0.00034246,7]
[322758175,1713252638766,-506.98275316,0.00034246,7]
[322758176,1713252638775,-499.09039203,0.00034246,7]
[322758177,1713252638785,-503.10222803,0.00034246,7]
[322758178,1713252638794,-501.51293357,0.00034246,7]
[322758179,1713252638803,-500.0,0.00034246,7]
[322758180,1713252638813,-500.0,0.00034246,7]
[322758181,1713252638821,-500.0,0.00034246,7]
[322758182,1713252638831,-500.0,0.00034246,7]
[322758183,1713252638840,-500.0,0.00034246,7]
[322758184,1713252638852,-500.0,0.00034246,7]
[322758185,1713252638862,-506.69553748,0.00034246,7]
[322758186,1713252638872,-500.0,0.00034246,7]
[322758187,1713252638881,-500.0,0.00034246,7]
[322758188,1713252638893,-496.77575451,0.00034246,7]
[322758189,1713252638902,-500.0,0.00034246,7]
[322758190,1713252638912,-500.0,0.00034246,7]
[322758191,1713252638921,-232.91174526,0.00034246,7]
[322758192,1713252638930,-505.55725819,0.00034246,7]
[322758193,1713252638939,-500.0,0.00034246,7]
[322758194,1713252638949,-362.5167433,0.00034246,7]
[322758195,1713252638958,-505.13033611,0.00034246,7]
[322758196,1713252638971,-500.0,0.00034246,7]
[322758197,1713252638980,-500.0,0.00034246,7]
[322758198,1713252638989,-500.0,0.00034246,7]
[322758199,1713252638998,-500.0,0.00034246,7]
[322758200,1713252639008,-500.0,0.00034246,7]
[322758201,1713252639017,-500.0,0.00034246,7]
[322758202,1713252639026,-500.0,0.00034246,7]
[322758203,1713252639035,-500.0,0.00034246,7]
[322758204,1713252639045,-500.0,0.00034246,7]
[322758205,1713252639054,-500.0,0.00034246,7]
[322758206,1713252639063,-500.0,0.00034246,7]
[322758207,1713252639072,-500.0,0.00034246,7]
[322758208,1713252639081,-500.0,0.00034246,7]
[322758209,1713252639090,-500.0,0.00034246,7]
[322758210,1713252639099,-500.0,0.00034246,7]
[322758211,1713252639108,-500.0,0.00034246,7]
[322758212,1713252639117,-500.0,0.00034246,7]
[322758213,1713252639126,-501.14744135,0.00034246,7]
[322758214,1713252639136,-504.1502022,0.00034246,7]
[322758215,1713252639145,-502.01171155,0.00034246,7]
[322758216,1713252639155,-500.0,0.00034246,7]
[322758217,1713252639164,-500.0,0.00034246,7]
[322758218,1713252639173,-510.77824776,0.00034246,7]
[322758219,1713252639181,-500.0,0.00034246,7]
[322758220,1713252639190,-500.0,0.00034246,7]
[322758221,1713252639199,-500.0,0.00034246,7]
[322758222,1713252639209,-500.0,0.00034246,7]
[322758223,1713252639218,-500.0,0.00034246,7]
[322758224,1713252639227,-500.0,0.00034246,7]
[322758225,1713252639235,-500.0,0.00034246,7]
[322758226,1713252639244,-511.5591863,0.00034246,7]
[322758227,1713252639253,-344.92941256,0.00034246,7]
[322758228,1713252639262,-503.07304888,0.00034246,7]
[322758229,1713252639271,-510.19297985,0.00034246,7]
[322758230,1713252639392,-500.0,0.00034246,7]
[322758231,1713252639401,-500.0,0.00034246,7]
[322758232,1713252639410,-500.0,0.00034246,7]
[322758233,1713252639419,-500.0,0.00034246,7]
[322758234,1713252639428,-500.0,0.00034246,7]
[322758235,1713252639438,-500.0,0.00034246,7]
[322758236,1713252639446,-500.0,0.00034246,7]
[322758237,1713252639455,-500.0,0.00034246,7]
[322758238,1713252639464,-500.0,0.00034246,7]
[322758239,1713252639473,-526.4046525,0.00034246,7]
[322758240,1713252639482,-500.0,0.00034246,7]
[322758241,1713252639491,-502.52450416,0.00034246,7]
[322758242,1713252639500,-300.0,0.00034246,7]
[322758243,1713252639509,-248.29563989,0.00034246,7]
[322758244,1713252639518,-500.0,0.00034246,7]
[322758245,1713252639527,-500.0,0.00034246,7]
[322758246,1713252639537,-500.0,0.00034246,7]
[322758247,1713252639545,-517.75190061,0.00034246,7]
[322758248,1713252639554,-500.0,0.00034246,7]
[322758249,1713252639563,-500.0,0.00034246,7]
[322758250,1713252639572,-500.0,0.00034246,7]
[322758251,1713252639582,-500.0,0.00034246,7]
[322758252,1713252639591,-505.66696559,0.00034246,7]
[322758253,1713252639600,-500.0,0.00034246,7]
[322758254,1713252639609,-500.0,0.00034246,7]
[322758255,1713252639618,-500.0,0.00034246,7]
[322758257,1713252639627,-581.09896928,0.00034246,7]
[322758258,1713252639636,-500.0,0.00034246,7]
[322758259,1713252639646,-500.0,0.00034246,7]
[322758260,1713252639654,-500.0,0.00034246,7]
[322758261,1713252639663,-500.0,0.00034246,7]
[322758262,1713252639672,-500.0,0.00034246,7]
[322758263,1713252639681,-500.0,0.00034246,7]
[322758264,1713252639690,-500.0,0.00034246,7]
[322758265,1713252639699,-500.0,0.00034246,7]
[322758266,1713252639709,-503.59983779,0.00034246,7]
[322758267,1713252639718,-503.39432689,0.00034246,7]
[322758268,1713252639727,-500.0,0.00034246,7]
[322758269,1713252639735,-500.0,0.00034246,7]
[322758270,1713252639744,-500.0,0.00034246,7]
[322758271,1713252639753,-500.0,0.00034246,7]
[322758272,1713252639762,-500.0,0.00034246,7]
[322758273,1713252639771,-500.0,0.00034246,7]
[322758274,1713252639779,-500.0,0.00034246,7]
[322758275,1713252639788,-500.0,0.00034246,7]
[322758276,1713252639797,-500.0,0.00034246,7]
[322758277,1713252639806,-193.66,0.00034246,7]
[322758278,1713252639816,-500.0,0.00034246,7]
[322758279,1713252639825,-543.95,0.00034246,7]
[322758280,1713252639834,-500.0,0.00034246,7]
[322758281,1713252639844,-353.79739558,0.00034246,7]
[322758282,1713252639853,-500.0,0.00034246,7]
[322758283,1713252639862,-500.0,0.00034246,7]
[322758284,1713252639871,-500.0,0.00034246,7]
[322758285,1713252639880,-500.0,0.00034246,7]
[322758286,1713252639891,-498.30051943,0.00034246,7]
[322758287,1713252639900,-500.0,0.00034246,7]
[322758288,1713252639910,-500.0,0.00034246,7]
[322758289,1713252639919,-500.0,0.00034246,7]
[322758290,1713252639930,-500.0,0.00034246,7]
[322758291,1713252639939,-503.78136177,0.00034246,7]
[322758292,1713252639949,-502.99771946,0.00034246,7]
[322758293,1713252639959,-500.0,0.00034246,7]
[322758294,1713252639972,-500.0,0.00034246,7]
[322758295,1713252639981,-500.0,0.00034246,7]
[322758296,1713252639991,-501.43961186,0.00034246,7]
[322758297,1713252640000,-276.12009048,0.00034246,7]
[322758298,1713252640010,-500.0,0.00034246,7]
[322758299,1713252640024,-500.0,0.00034246,7]
[322758300,1713252640034,-500.0,0.00034246,7]
[322758301,1713252640043,-500.0,0.00034246,7]
[322758302,1713252640052,-500.0,0.00034246,7]
[322758303,1713252640061,-500.0,0.00034246,7]
[322758304,1713252640070,-500.0,0.00034246,7]
[322758305,1713252640079,-500.0,0.00034246,7]
[322758306,1713252640088,-500.0,0.00034246,7]
[322758307,1713252640097,-528.29786978,0.00034246,7]
[322758308,1713252640106,-500.0,0.00034246,7]
[322758309,1713252640115,-500.0,0.00034246,7]
[322758310,1713252640124,-500.0,0.00034246,7]
[322758311,1713252640133,-500.0,0.00034246,7]
[322758312,1713252640145,-504.83325848,0.00034246,7]
[322758313,1713252640154,-500.0,0.00034246,7]
[322758314,1713252640163,-500.0,0.00034246,7]
[322758315,1713252640172,-500.0,0.00034246,7]
[322758316,1713252640181,-500.0,0.00034246,7]
[322758317,1713252640190,-500.0,0.00034246,7]
[322758318,1713252640199,-500.0,0.00034246,7]
[322758319,1713252640208,-500.0,0.00034246,7]
[322758320,1713252640217,-500.0,0.00034246,7]
[322758321,1713252640227,-500.0,0.00034246,7]
[322758322,1713252640236,-500.0,0.00034246,7]
[322758323,1713252640244,-500.0,0.00034246,7]
[322758324,1713252640254,-500.0,0.00034246,7]
[322758325,1713252640262,-500.0,0.00034246,7]
[322758326,1713252640271,-500.0,0.00034246,7]
[322758327,1713252640280,-500.0,0.00034246,7]
[322758328,1713252640289,-458.48454944,0.00034246,7]
[322758330,1713252640497,-41.51545056,0.00034246,7]
[322758331,1713252640507,-505.41068865,0.00034246,7]
[322758332,1713252640518,-500.0,0.00034246,7]
[322758333,1713252640528,-500.0,0.00034246,7]
[322758334,1713252640538,-500.0,0.00034246,7]
[322758335,1713252640547,-500.0,0.00034246,7]
[322758336,1713252640557,-500.0,0.00034246,7]
[322758337,1713252640566,-500.0,0.00034246,7]
[322758338,1713252640576,-500.0,0.00034246,7]
[322758339,1713252640586,-500.0,0.00034246,7]
[322758340,1713252640595,-500.0,0.00034246,7]
[322758341,1713252640604,-500.0,0.00034246,7]
[322758342,1713252640613,-500.0,0.00034246,7]
[322758343,1713252640622,-500.0,0.00034246,7]
[322758344,1713252640631,-178.45879794,0.00034246,7]
[322758345,1713252640642,-500.0,0.00034246,7]
[322758346,1713252640651,-500.0,0.00034246,7]
[322758347,1713252640659,-500.0,0.00034246,7]
[322758348,1713252640668,-500.0,0.00034246,7]
[322758349,1713252640677,-500.0,0.00034246,7]
[322758350,1713252640686,-259.32473764,0.00034246,7]